bitfinex/quotes_ETHUSD_20240824
["timestamp","ask_amount","ask_price","bid_price","bid_amount"]
[1724490114859,3.58993,2785.6,2785.2,0.065]
[1724490115214,3.59019,2785.4,2785.2,0.065]
[1724490115910,3.59027,2785.3,2785.2,0.065]
[1724490116116,7.898586,2785.3,2785.2,0.065]
[1724490116311,7.18054,2785.3,2785.2,0.065]
[1724490116542,10.18027058,2785.3,2785.2,0.065]
[1724490119640,6.59000058,2785.3,2785.2,0.065]
[1724490119809,2.99973058,2785.3,2785.2,0.065]
[1724490120912,10.18027058,2785.3,2785.2,0.065]
[1724490122492,6.59000058,2785.3,2785.2,0.065]
[1724490123066,10.18027058,2785.3,2785.2,0.065]
[1724490123263,11.19829764,2785.3,2785.2,0.065]
[1724490127890,11.76144296,2785.3,2785.2,0.065]
[1724490130287,7.1531459,2785.3,2785.2,0.065]
[1724490130494,6.59000058,2785.3,2785.2,0.065]
[1724490130880,10.18027058,2785.3,2785.2,0.065]
[1724490131083,6.59000058,2785.3,2785.2,0.065]
[1724490132157,10.18027058,2785.3,2785.2,0.065]
[1724490132353,11.19829764,2785.3,2785.2,0.065]
[1724490133182,14.87819764,2785.3,2785.2,0.065]
[1724490133377,18.46846764,2785.3,2785.2,0.065]
[1724490133803,21.46846764,2785.3,2785.2,0.065]
[1724490134297,21.84269155,2785.3,2785.2,0.065]
[1724490134658,21.46846764,2785.3,2785.2,0.065]
[1724490136256,21.84268841,2785.3,2785.2,0.065]
[1724490136868,3.5915,2784.4,2783.9,3.5399]
[1724490137089,2.99973058,2784.4,2783.9,3.5399]
[1724490137306,3.59118,2784.6,2783.9,7.13189]
[1724490138273,2.99973058,2784.4,2783.9,3.5399]
[1724490138474,6.59124058,2784.4,2783.9,3.5399]
[1724490138673,2.99973058,2784.4,2783.6,3.59238]
[1724490138899,3.59156,2784.3,2783.8,3.5399]
[1724490140279,3.59184,2784.1,2783.8,3.5399]
[1724490140661,3.59184,2784.1,2783.8,3.52074109]
[1724490141961,3.59196,2784.0,2783.5,7.44]
[1724490142157,3.59206,2784.0,2783.5,7.44]
[1724490142361,3.59206,2784.0,2783.2,11.03294]
[1724490142613,0.65912906,2784.3,2783.2,7.44]
[1724490142614,3.59234,2783.7,2783.2,7.44]
[1724490143113,3.59256,2783.6,2783.2,7.44]
[1724490143781,10.18426058,2783.8,2783.2,7.44]
[1724490143980,6.59197058,2783.8,2783.2,7.44]
[1724490144167,3.59242,2783.7,2783.2,7.44]
[1724490144565,6.59197058,2783.8,2783.2,7.44]
[1724490144965,10.18430058,2783.8,2783.2,7.44]
[1724490145198,3.59243,2783.7,2783.2,7.44]
[1724490145418,3.59243,2783.7,2782.8,7.28617]
[1724490145419,2.99973058,2783.4,2782.8,7.28617]
[1724490145621,6.59212058,2783.7,2782.8,7.28617]
[1724490145918,6.59212058,2783.7,2782.8,10.87958]
[1724490146121,2.99973058,2783.7,2783.1,3.59311]
[1724490146476,2.99973058,2783.7,2783.2,3.6927]
[1724490147171,6.59209058,2783.7,2783.2,3.6927]
[1724490148722,10.18453058,2783.7,2783.2,3.6927]
[1724490149224,3.5925,2783.6,2783.2,3.6927]
[1724490149385,3.59262,2783.5,2782.8,3.6927]
[1724490149588,3.59262,2783.5,2782.8,4.052057]
[1724490150376,3.59274,2783.4,2782.8,4.052057]
[1724490150604,6.59213058,2783.7,2782.8,4.052057]
[1724490150802,2.99973058,2783.7,2782.8,4.052057]
[1724490151003,6.59252058,2783.4,2782.5,3.6927]
[1724490151417,3.59289,2783.3,2782.5,3.6927]
[1724490151794,3.59299,2783.2,2782.5,3.6927]
[1724490152003,3.59299,2783.2,2782.5,7.28658]
[1724490152203,6.59252058,2783.4,2782.5,3.6927]
[1724490152204,6.59246058,2783.4,2782.5,3.6927]
[1724490152406,3.59285,2783.3,2782.6,4.26301]
[1724490152612,7.18609,2783.2,2782.6,0.66927]
[1724490152927,6.59250058,2783.4,2782.6,4.26302]
[1724490153128,6.59250058,2783.4,2782.6,4.26294]
[1724490153278,10.18533058,2783.4,2782.6,4.26294]
[1724490153483,6.59250058,2783.4,2782.7,0.795564]
[1724490153684,2.99973058,2783.4,2782.7,4.389184]
[1724490153894,2.99973058,2783.4,2782.8,3.59348]
[1724490154293,2.99973058,2783.4,2782.8,3.59341]
[1724490155123,2.99973058,2783.4,2782.8,7.18682]
[1724490155324,2.99973058,2783.4,2782.8,3.59341]
[1724490155637,2.99973058,2783.4,2782.8,7.18683]
[1724490155783,2.99973058,2783.4,2782.8,8.0519964]
[1724490155984,2.99973058,2783.4,2782.8,4.4585764]
[1724490157030,2.99973058,2783.4,2782.8,8.0519964]
[1724490157334,2.99973058,2783.4,2782.8,4.4585764]
[1724490157529,2.99973058,2783.4,2782.9,3.59327]
[1724490158090,2.99973058,2783.4,2782.8,4.4585664]
[1724490158696,3.59247,2783.6,2782.9,3.6927]
[1724490158899,3.59275,2783.4,2782.6,7.95567]
[1724490159104,3.59275,2783.4,2782.6,7.95563]
[1724490160445,6.59248058,2783.4,2782.6,7.28636]
[1724490160800,3.59299,2783.2,2782.6,3.6927]
[1724490161000,3.59299,2783.2,2782.4,7.18787]
[1724490161001,3.59299,2783.2,2782.4,3.59392]
[1724490161848,3.59314,2783.1,2782.4,3.59392]
[1724490162150,3.59299,2783.2,2782.4,3.594]
[1724490162333,3.59299,2783.2,2782.4,3.59394]
[1724490162648,4.97729006,2783.2,2782.4,7.18788]
[1724490162850,4.97729006,2783.2,2782.4,3.59394]
[1724490162999,4.97729006,2783.2,2782.4,7.18788]
[1724490163206,3.59314,2783.1,2782.4,3.59394]
[1724490163445,4.97729006,2783.2,2782.4,3.59394]
[1724490163648,6.59252058,2783.4,2782.6,3.59369]
[1724490164143,10.18535058,2783.4,2782.6,3.59369]
[1724490164348,3.59288,2783.3,2782.6,3.59369]
[1724490164545,7.18582,2783.3,2782.6,3.59369]
[1724490164730,3.59288,2783.3,2782.6,3.59369]
[1724490165607,3.59288,2783.3,2782.6,7.18735]
[1724490165812,3.59288,2783.3,2782.6,3.59367]
[1724490166001,4.61140606,2783.3,2782.6,3.59367]
[1724490166202,4.61140606,2783.3,2782.4,5.426015]
[1724490166510,8.20435606,2783.3,2782.5,3.5938]
[1724490166837,3.59299,2783.2,2782.5,3.5938]
[1724490167208,3.59299,2783.2,2782.4,5.426015]
[1724490167630,3.5932,2783.1,2782.3,11.03414]
[1724490167834,3.5932,2783.1,2782.3,7.44]
[1724490168028,3.59333,2783.0,2782.3,7.44]
[1724490168477,3.8033,2783.1,2782.3,7.44]
[1724490168634,3.59312,2783.1,2782.4,3.59399]
[1724490168968,4.42376627,2783.1,2782.3,7.44]
[1724490169378,4.42376627,2783.1,2782.4,3.59398]
[1724490169533,4.42376627,2783.1,2782.3,7.44]
[1724490169733,3.59331,2783.0,2782.3,7.44]
[1724490170262,4.42376627,2783.1,2782.3,7.44]
[1724490170580,1.12041266,2783.2,2782.4,3.59394]
[1724490170732,4.71340266,2783.2,2782.5,3.59386]
[1724490170935,3.59315,2783.1,2782.4,3.59394]
[1724490171145,3.59315,2783.1,2782.3,7.44]
[1724490171480,3.59325,2783.0,2782.3,7.44]
[1724490171659,6.59288058,2783.1,2782.3,7.44]
[1724490171863,3.59352,2782.8,2782.3,7.44]
[1724490172034,3.59339,2782.9,2782.2,3.6927]
[1724490173245,3.59339,2782.9,2782.2,7.28694]
[1724490173448,6.59291058,2783.1,2782.2,7.28694]
[1724490173642,3.59318,2783.1,2782.4,3.59391]
[1724490173893,3.59293,2783.3,2782.4,4.681992]
[1724490174187,3.59299,2783.2,2782.4,4.681992]
[1724490174691,3.59299,2783.2,2782.5,3.59381]
[1724490175188,10.39587058,2783.4,2782.6,3.59371]
[1724490175495,3.0,2783.3,2782.8,3.59348]
[1724490176249,6.59297,2783.3,2782.6,4.4212502]
[1724490176564,3.0,2783.3,2782.7,3.59361]
[1724490176751,3.0,2783.3,2782.4,4.778182]
[1724490176952,6.59287,2783.3,2782.6,3.59372]
[1724490177493,6.59287,2783.3,2782.6,3.59366]
[1724490177699,6.59287,2783.3,2782.5,3.59376]
[1724490177995,10.18582,2783.3,2782.5,3.59376]
[1724490178194,3.59302,2783.2,2782.5,3.59376]
[1724490178406,3.59302,2783.2,2782.5,4.681554]
[1724490178588,1.25159974,2782.8,2782.5,4.681554]
[1724490179100,1.25159974,2782.8,2782.5,1.087794]
[1724490179251,1.25159974,2782.8,2782.4,3.6901]
[1724490179452,3.0,2783.3,2782.7,3.5936]
[1724490179665,1.25159974,2783.1,2782.7,3.5936]
[1724490180353,1.25159974,2783.1,2782.7,3.59356]
[1724490181994,1.25159974,2783.1,2782.6,3.59374]
[1724490182193,1.25159974,2783.3,2782.8,3.59342]
[1724490182782,1.25159974,2783.3,2782.7,0.909374]
[1724490182988,1.25159974,2783.3,2782.7,4.502984]
[1724490185269,1.25159974,2783.1,2782.7,0.909374]
[1724490185667,1.25159974,2782.9,2782.4,11.1301]
[1724490185898,1.25159974,2782.9,2782.5,0.55]
[1724490186198,1.25159974,2782.9,2782.4,11.1301]
[1724490187191,1.25159974,2782.9,2782.4,7.44]
[1724490187393,1.25159974,2782.9,2782.4,8.543417]
[1724490188383,1.25159974,2782.7,2782.4,7.44]
[1724490190012,1.25159974,2782.7,2782.2,3.59427]
[1724490190892,1.25159974,2782.7,2782.2,7.18854]
[1724490191063,1.25159974,2782.9,2782.2,3.59427]
[1724490191266,1.25159974,2782.9,2782.5,3.59388]
[1724490194412,1.25159974,2782.9,2782.4,3.7671]
[1724490195105,1.25159974,2782.7,2782.3,0.359427]
[1724490195260,1.25159974,2782.7,2782.2,3.59418]
[1724490195670,3.4926,2783.2,2782.0,23.6671]
[1724490195671,1.25159974,2782.5,2782.0,27.26153]
[1724490195890,1.25159974,2782.7,2782.2,3.5942]
[1724490198389,1.25159974,2782.7,2782.0,10.95598]
[1724490198606,1.25159974,2782.5,2782.1,3.59431]
[1724490200400,1.25159974,2782.3,2781.7,3.7671]
[1724490200585,1.25159974,2782.3,2781.8,3.59478]
[1724490201190,1.25159974,2782.1,2781.6,3.59496]
[1724490201383,1.25159974,2782.1,2781.7,3.59491]
[1724490202300,1.25159974,2782.1,2781.6,3.59496]
[1724490203089,1.25159974,2782.1,2781.4,11.03521]
[1724490203286,1.25159974,2781.9,2781.4,7.44]
[1724490203486,1.25159974,2781.9,2781.2,3.59553]
[1724490203748,1.25159974,2781.7,2781.2,3.59553]
[1724490203912,1.25159974,2781.7,2781.3,3.5954]
[1724490204216,1.25159974,2781.9,2781.2,3.59553]
[1724490205326,1.25159974,2781.7,2781.1,7.44]
[1724490206120,1.25159974,2781.5,2781.1,7.44]
[1724490206799,3.59533,2781.4,2781.1,7.44]
[1724490207136,1.25159974,2781.5,2781.1,7.44]
[1724490207636,4.84686974,2781.5,2781.1,7.44]
[1724490208684,1.25159974,2781.3,2781.1,7.44]
[1724490209386,1.25159974,2781.3,2780.8,0.1237965]
[1724490210439,4.84729974,2781.1,2780.8,0.1237965]
[1724490210611,1.25159974,2781.1,2780.8,0.1237965]
[1724490211453,1.25159974,2781.3,2780.8,3.7198765]
[1724490211799,1.25159974,2781.3,2780.8,0.1237965]
[1724490212032,1.25159974,2781.1,2780.8,0.1237965]
[1724490212556,1.25159974,2781.1,2780.8,3.7198465]
[1724490212758,1.25159974,2781.1,2780.8,0.1237965]
[1724490213335,1.73631771,2781.1,2780.8,0.1237965]
[1724490213516,1.25159974,2781.1,2780.8,0.1237965]
[1724490214728,1.25159974,2780.9,2780.8,0.1237965]
[1724490217321,3.59551,2781.3,2780.8,0.1237965]
[1724490217681,1.25159974,2781.2,2780.8,3.7198365]
[1724490218165,1.25159974,2781.2,2780.8,0.1237965]
[1724490220331,1.25159974,2781.2,2780.8,3.7197765]
[1724490220830,0.25159974,2781.2,2780.8,3.7197765]
[1724490222178,0.25159974,2781.2,2780.8,0.1237965]
[1724490223060,1.25159974,2781.0,2780.8,0.1237965]
[1724490225170,1.25159974,2781.2,2780.8,0.1237965]
[1724490226052,1.25159974,2781.2,2780.8,3.7198765]
[1724490226231,1.25159974,2781.2,2780.8,0.1237965]
[1724490230193,4.84718974,2781.2,2780.8,0.1237965]
[1724490230860,1.25159974,2781.0,2780.8,0.1237965]
[1724490232802,7.1919,2780.9,2780.8,0.1237965]
[1724490232997,8.39327997,2780.9,2780.8,0.1237965]
[1724490235535,15.55952997,2780.9,2780.8,0.1237965]
[1724490235682,18.55952997,2780.9,2780.8,0.1237965]
[1724490236022,16.21517971,2780.9,2780.8,0.1237965]
[1724490236222,14.96357997,2780.9,2780.8,0.1237965]
[1724490236380,16.21517971,2780.9,2780.8,0.1237965]
[1724490238029,7.79732997,2780.9,2780.8,0.1237965]
[1724490238233,7.84754974,2780.9,2780.8,0.1237965]
[1724490238842,11.44349974,2780.9,2780.8,0.1237965]
[1724490241602,15.01379974,2780.9,2780.8,0.1237965]
[1724490241803,18.60974974,2780.9,2780.8,0.1237965]
[1724490244056,15.01379974,2780.9,2780.8,0.1237965]
[1724490244263,16.87475271,2780.9,2780.8,0.1237965]
[1724490244750,20.47070271,2780.9,2780.8,0.1237965]
[1724490244951,16.87475271,2780.9,2780.8,0.1237965]
[1724490245461,20.47070271,2780.9,2780.8,0.1237965]
[1724490250159,24.06665271,2780.9,2780.8,0.1237965]
[1724490250363,20.47070271,2780.9,2780.8,0.1237965]
[1724490250514,24.06665271,2780.9,2780.8,0.1237965]
[1724490252255,24.44064765,2780.9,2780.8,0.1237965]
[1724490252416,24.99064765,2780.9,2780.8,0.1237965]
[1724490254201,24.99064765,2780.9,2779.4,3.5835]
[1724490254202,3.59726,2779.9,2779.4,3.5835]
[1724490254359,1.25159974,2779.7,2779.4,3.5835]
[1724490258480,3.59706,2780.1,2779.4,4.301657]
[1724490258663,4.84898974,2779.8,2779.4,4.301657]
[1724490258865,4.84932974,2779.6,2778.8,3.59859]
[1724490259064,1.25159974,2779.3,2778.9,3.5835]
[1724490259437,3.5973,2779.9,2779.1,3.5982]
[1724490259732,1.25159974,2779.6,2779.2,3.5835]
[1724490260796,1.25159974,2779.6,2779.2,4.301669]
[1724490261085,3.59717,2780.0,2779.3,3.59794]
[1724490261086,1.25159974,2779.9,2779.3,3.59794]
[1724490261382,1.25159974,2779.9,2779.4,3.5835]
[1724490261954,6.59693,2780.2,2779.4,3.5835]
[1724490262289,3.59617,2780.8,2779.9,4.83509974]
[1724490262590,3.59609,2780.8,2780.2,3.5835]
[1724490263083,1.25159974,2780.9,2780.2,3.5835]
[1724490263288,4.84756974,2780.9,2780.2,4.301548]
[1724490263953,3.59609,2780.8,2780.2,4.301548]
[1724490264156,1.25159974,2780.9,2780.2,7.898308]
[1724490264563,1.25159974,2780.9,2780.2,4.301548]
[1724490265254,4.84756974,2780.9,2780.2,4.301548]
[1724490265471,4.84756974,2780.9,2780.3,0.7898528]
[1724490265681,1.25159974,2780.9,2780.3,0.7898528]
[1724490265995,4.84755974,2780.9,2780.3,0.7898528]
[1724490266722,3.0,2781.2,2780.2,3.5835]
[1724490266723,4.84790974,2780.7,2780.2,3.5835]
[1724490268595,3.59658,2780.5,2780.2,3.5835]
[1724490268756,3.59658,2780.5,2779.5,4.865904]
[1724490268757,3.59668,2780.4,2779.6,3.6511]
[1724490268952,3.59668,2780.4,2779.7,0.97685237]
[1724490269799,3.59687,2780.2,2779.7,0.97685237]
[1724490270093,3.59687,2780.2,2779.6,3.6511]
[1724490270297,3.59703,2780.1,2779.6,3.6511]
[1724490270654,3.59712,2780.0,2779.6,3.6511]
[1724490271389,3.59726,2779.9,2779.6,3.6511]
[1724490272170,3.59739,2779.8,2779.1,3.5982]
[1724490272506,3.59739,2779.8,2779.2,3.6511]
[1724490273460,3.59763,2779.7,2779.2,3.6511]
[1724490273769,3.59767,2779.6,2779.2,3.6511]
[1724490274508,3.59778,2779.5,2779.2,3.6511]
[1724490274663,3.59778,2779.5,2778.4,3.47490775]
[1724490274664,3.59784,2779.5,2778.9,3.6511]
[1724490278122,3.59756,2779.7,2779.0,3.59839]
[1724490278299,3.59729,2779.9,2779.1,7.24938]
[1724490278484,3.0,2779.8,2779.2,3.59815]
[1724490278988,3.59752,2779.7,2779.1,3.6511]
[1724490279193,3.0,2779.8,2779.1,7.24938]
[1724490279399,3.0,2779.8,2779.2,3.6511]
[1724490280315,3.59729,2779.9,2779.3,0.724938]
[1724490280549,7.19466,2779.9,2779.3,0.724938]
[1724490280839,3.59705,2780.1,2779.4,3.6511]
[1724490280981,7.19416,2780.1,2779.4,3.6511]
[1724490281186,3.59712,2780.0,2779.4,3.6511]
[1724490281385,3.59732,2779.9,2779.4,3.6511]
[1724490281586,3.59741,2779.8,2779.4,3.6511]
[1724490281998,7.19514,2779.7,2779.4,3.6511]
[1724490282240,3.59751,2779.7,2778.9,12.123303]
[1724490282447,3.59797,2779.4,2778.9,7.44]
[1724490282602,6.59734,2779.9,2778.9,7.44]
[1724490282946,7.19572,2779.5,2778.9,7.44]
[1724490283247,3.59793,2779.4,2778.9,7.44]
[1724490285465,3.59793,2779.4,2778.8,3.6511]
[1724490285667,4.16169812,2779.4,2778.8,3.6511]
[1724490291566,4.16169812,2779.4,2778.7,3.59871]
[1724490291567,3.59803,2779.3,2778.7,3.59871]
[1724490292530,4.85288642,2779.3,2778.6,11.03892]
[1724490294811,4.85313642,2779.1,2778.6,7.44]
[1724490295001,3.59848,2779.0,2778.5,3.648]
[1724490296848,5.33845006,2779.1,2778.5,3.648]
[1724490297226,3.59841,2779.0,2778.5,3.648]
[1724490297427,8.93682006,2779.1,2778.5,3.648]
[1724490298257,5.33845006,2779.1,2778.5,3.648]
[1724490299156,1.25485642,2778.9,2778.4,3.59914]
[1724490299655,4.16166812,2779.4,2778.6,3.8695]
[1724490299857,3.5979,2779.4,2778.7,3.59878]
[1724490300055,4.85275642,2779.4,2778.7,3.59878]
[1724490300961,4.85275642,2779.4,2778.7,3.59871]
[1724490302347,3.5979,2779.4,2778.7,3.59871]
[1724490302514,3.59789,2779.5,2778.9,3.8695]
[1724490302714,1.25485642,2779.3,2778.9,3.8695]
[1724490303064,4.85274642,2779.5,2778.9,3.8695]
[1724490303241,6.08167806,2779.5,2778.9,3.8695]
[1724490304259,9.67952806,2779.5,2778.9,3.8695]
[1724490304650,6.08163806,2779.5,2778.9,3.8695]
[1724490305159,3.59755,2779.7,2779.1,3.59828]
[1724490305456,3.59755,2779.7,2778.9,3.8695]
[1724490305457,4.25485642,2779.6,2778.9,7.46793]
[1724490305776,4.85276642,2779.4,2778.9,3.8695]
[1724490305923,0.48527664,2779.3,2778.9,3.8695]
[1724490306120,0.48527664,2779.3,2778.8,7.44]
[1724490306762,1.25485642,2779.2,2778.8,7.44]
[1724490307069,7.68152664,2779.3,2778.8,7.44]
[1724490307070,1.25485642,2779.0,2778.8,7.44]
[1724490307372,1.25485642,2779.0,2778.4,3.59912]
[1724490309860,1.25485642,2779.0,2778.4,7.19823]
[1724490310013,1.25485642,2779.0,2778.4,3.59911]
[1724490313135,0.48532464,2779.0,2778.4,3.59911]
[1724490313344,0.48532464,2779.0,2778.3,7.44]
[1724490313345,1.25485642,2778.8,2778.3,7.44]
[1724490314283,4.85352642,2778.8,2778.3,7.44]
[1724490315898,3.5653,2779.2,2778.3,7.44]
[1724490316182,1.25485642,2779.3,2778.6,3.59881]
[1724490316689,4.25485642,2779.3,2778.7,3.59879]
[1724490317045,4.25485642,2779.3,2778.6,3.59881]
[1724490317244,7.85288642,2779.3,2778.6,3.59881]
[1724490318170,3.0,2779.3,2778.6,4.20811342]
[1724490318495,7.19544,2779.6,2778.9,3.7466]
[1724490318672,6.59779,2779.5,2778.9,3.7466]
[1724490319387,3.0,2779.5,2779.0,3.5984]
[1724490319596,3.59764,2779.6,2778.9,3.7466]
[1724490319755,3.0,2779.5,2778.9,3.7466]
[1724490320091,3.0,2779.5,2778.9,8.439434]
[1724490320295,3.5653,2779.8,2778.9,8.439434]
[1724490320296,3.5653,2779.8,2779.0,3.59841]
[1724490320447,3.5973,2779.9,2779.2,3.59815]
[1724490321145,3.5973,2779.9,2779.0,7.19674]
[1724490321495,3.5973,2779.9,2779.1,3.59828]
[1724490321648,3.5973,2779.9,2779.2,3.59814]
[1724490321848,3.59703,2780.1,2779.4,3.59789]
[1724490322247,3.59677,2780.3,2779.5,3.66971181]
[1724490322792,7.19362,2780.3,2779.5,3.66971181]
[1724490323088,7.19362,2780.3,2779.5,3.59776]
[1724490323089,3.59677,2780.3,2779.5,3.59776]
[1724490323316,3.0,2780.2,2779.5,3.59776]
[1724490323801,6.59687,2780.2,2779.5,3.59776]
[1724490324100,6.59687,2780.2,2779.5,7.19543]
[1724490324101,3.0,2780.2,2779.5,7.19543]
[1724490324270,3.0,2780.2,2779.6,3.6728]
[1724490324475,4.672629,2780.3,2779.6,7.27042]
[1724490324695,3.59677,2780.3,2779.6,7.6820566]
[1724490325817,7.16181,2780.5,2779.7,3.5975]
[1724490325993,3.0,2780.4,2779.7,3.5975]
[1724490326179,3.0,2780.4,2779.6,7.6820566]
[1724490326380,3.0,2780.4,2779.6,7.27042]
[1724490326920,3.59681,2780.3,2779.6,7.27042]
[1724490327897,3.59681,2780.3,2779.6,7.27034]
[1724490328908,3.59681,2780.3,2779.7,3.5975]
[1724490329455,3.59681,2780.3,2779.6,10.8679]
[1724490329607,3.59681,2780.3,2779.6,7.27034]
[1724490331368,4.972674,2780.3,2779.6,10.86789]
[1724490331581,4.972674,2780.3,2779.6,7.27034]
[1724490331797,4.972674,2780.3,2779.7,3.66944387]
[1724490332018,4.972674,2780.3,2779.6,7.27034]
[1724490332314,3.59686,2780.2,2779.6,3.6728]
[1724490332527,4.3941274,2780.2,2779.6,3.6728]
[1724490332812,0.7972674,2780.2,2779.6,10.86787]
[1724490332984,4.972604,2780.3,2779.6,7.27031]
[1724490334596,4.972604,2780.3,2779.4,3.59785]
[1724490334597,3.597,2780.1,2779.4,3.59785]
[1724490335222,3.597,2780.1,2779.4,3.5978]
[1724490335442,4.972634,2780.3,2779.5,3.59774]
[1724490335622,8.569474,2780.3,2779.5,3.59774]
[1724490335942,3.59687,2780.2,2779.5,3.59774]
[1724490336095,4.19352406,2780.2,2779.5,3.59774]
[1724490337216,4.19352406,2780.2,2779.5,3.59664035]
[1724490337758,3.597,2780.1,2779.5,3.59664035]
[1724490338650,3.597,2780.1,2779.3,18.30871]
[1724490338848,3.597,2780.1,2779.4,3.59785]
[1724490339047,3.5214,2780.0,2779.3,7.44]
[1724490339245,3.59732,2779.9,2779.3,7.44]
[1724490339712,3.5214,2780.0,2779.3,7.44]
[1724490339920,3.5214,2780.0,2779.5,3.59775]
[1724490340145,3.59639,2780.6,2779.6,3.6105]
[1724490340424,3.8675,2781.1,2780.0,3.59703]
[1724490340425,1.25364703,2780.7,2780.0,3.59703]
[1724490340643,3.8675,2781.1,2779.9,0.07193821]
[1724490340644,3.59587,2781.0,2779.9,0.07193821]
[1724490340856,1.25364703,2780.7,2780.2,3.59678]
[1724490341773,1.25364703,2780.7,2780.0,3.597]
[1724490341774,4.25364703,2780.7,2780.0,3.597]
[1724490342009,4.25364703,2780.7,2780.1,3.59698]
[1724490342010,7.84988703,2780.7,2780.1,3.59698]
[1724490342149,8.99448773,2780.7,2780.1,3.59698]
[1724490342354,8.99448773,2780.7,2780.0,3.5971]
[1724490342659,3.59641,2780.6,2779.9,3.59723]
[1724490342848,3.59649,2780.5,2779.9,3.59723]
[1724490343334,7.46391,2780.6,2779.8,3.6105]
[1724490343542,1.16085107,2780.5,2779.8,3.6105]
[1724490343771,3.59662,2780.4,2779.8,3.6105]
[1724490344081,4.75732107,2780.5,2779.8,7.20788]
[1724490345034,4.75732107,2780.5,2779.8,10.80518]
[1724490345235,3.59647,2780.5,2779.8,10.80518]
[1724490345480,3.59647,2780.5,2779.8,7.2078]
[1724490346445,3.59647,2780.5,2779.8,10.80508]
[1724490346862,3.59647,2780.5,2779.9,3.59724]
[1724490347986,3.59647,2780.5,2779.8,3.6105]
[1724490348943,3.5968,2780.3,2779.7,7.44]
[1724490349646,3.59696,2780.2,2779.7,7.44]
[1724490350896,7.2583,2780.1,2779.7,7.44]
[1724490352372,3.6613,2780.1,2779.7,7.44]
[1724490352569,3.59662,2780.4,2779.8,1.103756]
[1724490352906,7.19332,2780.4,2779.8,1.103756]
[1724490353258,3.59662,2780.4,2779.8,1.103756]
[1724490353481,7.19331,2780.4,2779.8,1.103756]
[1724490354186,3.59674,2780.3,2779.8,1.103756]
[1724490354494,3.59674,2780.3,2779.7,3.7758]
[1724490355195,7.19357,2780.3,2779.7,3.7758]
[1724490355347,7.19359,2780.3,2779.7,3.7758]
[1724490355547,7.19359,2780.3,2779.6,3.59756]
[1724490356198,7.19359,2780.3,2779.1,3.7758]
[1724490356199,3.0088244,2779.8,2779.1,3.7758]
[1724490356402,3.0088244,2780.4,2778.8,3.7758]
[1724490356403,6.6066544,2779.5,2778.8,3.7758]
[1724490356611,3.59783,2779.5,2778.8,3.7758]
[1724490356985,3.5979,2779.4,2778.7,7.44]
[1724490358200,3.59812,2779.3,2778.7,7.44]
[1724490358381,3.59818,2779.2,2778.7,7.44]
[1724490358581,3.59818,2779.2,2778.6,3.7758]
[1724490359102,3.5979,2779.4,2778.6,3.7758]
[1724490359399,3.5979,2779.4,2778.6,5.257299]
[1724490359801,3.5979,2779.4,2778.6,8.856229]
[1724490359999,3.5979,2779.4,2778.6,8.65425358]
[1724490360171,3.59768,2779.6,2778.6,5.05532358]
[1724490360172,3.59806,2779.3,2778.6,5.05532358]
[1724490360581,7.25885,2779.7,2778.8,3.59856]
[1724490360786,6.59765,2779.6,2778.8,3.59856]
[1724490361512,3.59792,2779.4,2778.7,3.5988]
[1724490361657,3.59792,2779.4,2778.6,3.57382458]
[1724490362000,3.59805,2779.3,2778.6,3.57382458]
[1724490362348,3.59805,2779.3,2778.6,5.03510304]
[1724490362557,3.59777,2779.5,2778.6,8.63401304]
[1724490363059,6.59765,2779.6,2778.7,3.59879]
[1724490364458,3.59778,2779.5,2778.7,3.59879]
[1724490366907,3.59778,2779.5,2778.8,3.59867]
[1724490367061,3.0,2779.6,2778.9,3.59854]
[1724490367337,3.0,2779.6,2779.0,3.6844]
[1724490367637,7.19488,2779.8,2779.0,7.2828]
[1724490367878,3.0,2779.7,2779.0,7.2828]
[1724490368438,6.59759,2779.7,2779.0,7.2828]
[1724490369252,3.59764,2779.6,2779.0,3.6844]
[1724490369448,7.1954,2779.6,2779.0,3.6844]
[1724490369653,7.19539,2779.6,2779.0,3.6844]
[1724490369860,3.59777,2779.5,2779.0,3.6844]
[1724490370046,3.59791,2779.4,2778.8,1.2232453]
[1724490370250,3.59791,2779.4,2778.7,11.1244]
[1724490370833,7.19593,2779.4,2778.7,11.1244]
[1724490371047,3.59791,2779.4,2778.7,11.1244]
[1724490371462,3.59791,2779.4,2778.7,14.72312]
[1724490371982,7.19591,2779.4,2778.7,14.72312]
[1724490372278,3.59791,2779.4,2778.7,14.72312]
[1724490372876,3.59802,2779.3,2778.7,14.72312]
[1724490373377,1.2080429,2779.4,2778.8,3.59866]
[1724490373548,1.2080429,2779.4,2778.7,18.32183]
[1724490373750,3.59786,2779.5,2778.8,3.59859]
[1724490375385,3.59786,2779.5,2778.9,3.59854]
[1724490375552,3.59786,2779.5,2778.7,14.7231]
[1724490376051,7.19574,2779.5,2778.7,14.7231]
[1724490376586,3.59786,2779.5,2778.7,14.7231]
[1724490376743,3.59786,2779.5,2778.9,3.59851]
[1724490376943,1.019539,2779.6,2779.0,3.59838]
[1724490377142,1.019539,2779.6,2778.9,3.59851]
[1724490377456,4.617289,2779.6,2778.9,3.59851]
[1724490377776,3.59778,2779.5,2779.3,0.3]
[1724490377977,0.4617319,2779.4,2779.3,0.3]
[1724490379401,1.019539,2779.6,2779.3,0.3]
[1724490380472,3.59707,2780.1,2779.4,3.59777]
[1724490380700,3.5972,2780.0,2779.3,7.49595]
[1724490380877,3.5972,2780.0,2779.3,3.89794]
[1724490381086,5.433997,2780.0,2779.3,3.89794]
[1724490381903,5.433997,2780.0,2779.3,4.19794]
[1724490382386,5.433997,2780.0,2779.3,0.6]
[1724490382387,3.59727,2779.9,2779.3,0.6]